{"text_format":"1","workbook":"xlsx","n_sheets":2,"sheets":["Lisez-moi","GESTION DES RISQUES"],"not_rendered":{"charts":0,"images":2,"macros":1,"external_links":0,"defined_names":33,"comments":0,"pivot_tables":0},"unopened":[],"bounds":{"document_bytes":16777216,"sheet_cells":100000,"rows_first":2000,"rows_last":500,"rows_between":2000,"halvings":0,"cell_chars":16384,"cell_head_chars":4096},"cells_cut":0,"cells_raw":0,"read":"whole","date_system":"1900"}

{"sheet":"Lisez-moi","index":0,"n_rows":41,"n_cols":2,"rows_kept":41,"cut":false,"hidden":false,"merged":[]}
[]
[null,"LISEZ-MOI"]
[]
[null,"MATRICE_RISQUES_v1.xlsm"]
[null,"Version v1 — mise à jour le 10/04/2025"]
[null,"Fichier gratuit proposé par Excelhance — excelhance.fr"]
[]
[null,"1. AVANT TOUT : DÉBLOQUER LE FICHIER"]
[]
[null,"Ce classeur contient des macros. Windows marque les fichiers téléchargés depuis Internet, et Excel refuse alors d'exécuter leurs macros — sans proposer de bouton pour les activer."]
[]
[null,"Fermez ce classeur, puis :"]
[]
[null,"1. Clic droit sur le fichier dans l'explorateur Windows, puis Propriétés"]
[null,"2. Onglet Général, tout en bas : cochez la case Débloquer"]
[null,"3. Validez par OK, puis rouvrez le classeur"]
[]
[null,"Si la case Débloquer n'apparaît pas, c'est en général que le fichier se trouve déjà dans un dossier OneDrive ou SharePoint : déplacez-le sur votre disque, la case réapparaît."]
[]
[null,"Sans cette manipulation, le classeur s'ouvre normalement, mais aucun de ses automatismes ne fonctionne."]
[]
[null,"2. CE DONT VOUS AVEZ BESOIN"]
[]
[null,"Version d'Excel : toute version supportant les macros VBA"]
[null,"Ce classeur n'a pas été testé sur Excel pour Mac ni sur Excel en ligne, qui ne prennent pas en charge les mêmes fonctionnalités."]
[]
[null,"3. CONDITIONS D'UTILISATION"]
[]
[null,"Vous pouvez utiliser ce fichier et le modifier librement, à titre personnel comme professionnel, y compris au sein de votre entreprise."]
[]
[null,"Sa revente, sa redistribution et son utilisation comme support d'une formation payante ne sont pas autorisées."]
[]
[null,"Ce fichier est fourni à titre gracieux et en l'état. Vérifiez ses résultats avant tout usage engageant, comme vous le feriez pour n'importe quel classeur repris de l'extérieur."]
[]
[null,"4. UNE QUESTION, UNE ERREUR, UNE IDÉE"]
[]
[null,"www.excelhance.fr/fichiers-gratuits — le formulaire de contact est en bas de page."]
[null,"Vos remarques nourrissent les versions suivantes."]
[]
[null,"Excelhance — EURL au capital de 1 € — RCS Nancy 951 838 671"]
[null,"Formations Excel, VBA, Power Query et Power BI — Nancy, Grand Est et à distance"]

{"sheet":"GESTION DES RISQUES","index":1,"n_rows":40,"n_cols":10,"rows_kept":40,"cut":false,"hidden":false,"merged":[]}
[]
[null,"Désignation du Risque","Probabilité \n(1 à 10)","Gravité \n(1 à 10)","Facteur de risque\n(1 à 100)","Plan d'action prévu",null,"Legende"]
[null,"Défaillance protocole DeFi (hack, exit-scam…)",8,10,{"$f":"IF(AND(C3<>\"\",D3<>\"\"),C3*D3,0)","v":80},"- S'assuer que les dev d'un protocol DeFi sont sérieux/robustes --> MYOR\n- Ne pas trop exposer le portefeuille à la DeFi (moins de 10%)",null,"Risque Faible",1,20]
[null,"Défaillance technique d'un stablecoin",8,8,64,"Trouver un autre stablecoin plus sécurisé",null,"Risque Modéré",{"$f":"J3","v":20},40]
[null,"Céder à une FOMO ou FUD",7,9,63,"En cas de mauvaises idées : prendre du recul sur l'AT avec des échelles de temps plus larges et se remémorer les derniers faits d'AF",null,"Risque Elevé",{"$f":"J4","v":40},60]
[null,"Défaillance stratégie Kryll (arrêt suite à skyped, arrêt admin…)",5,10,50,"- Commencer par une phase de test de 6 mois min --> pas plus de 1000$ / stratégie\n- Diversifier les stratégies/paires lancées pour lisser le risque",null,"Risque Très Elevé",{"$f":"J5","v":60},80]
[null,"Pertes liées à un mauvais investissement (projet borderline)",5,10,50,"- S'assurer de la pertinence/viabilité d'un projet avant d'investir --> MYOR\n- Ne pas trop investir dans un projet, même si robuste",null,"Risque Inacceptable",{"$f":"J6","v":80},100]
[null,"Défaillance exchange centralisé (maintenance, hack, exit-scam…)",5,10,50,"- Utiliser plusieurs exchanges, ne pas tout centraliser sur un seul\n- Si nouvel exchange : s'assurer de son sérieux/sa robustesse avant d'y déposer des fonds"]
[null,"Hausse des impôts crypto en France",8,4,32,"- Au mieux : optimisation/allègement fiscal via des investissements dédiés\n- Au pire : départ de la France pour un pays UE plus accueillant fiscalement"]
[null,"Gel de compte en banque suite à trx fiat/crypto",5,6,30,"- Prévoir un CCP de secours, dans une néo-banque pro-crypto\n- Ne pas stocker d'argent (€) sur le CPP principal, fonctionner en flux tendu"]
[null,"Défaillance protocole d'épargne centralisé (arrêt, chgt rendement…)",3,10,30,"- S'assurer de la robustesse de la société avant d'investir --> MYOR\n- Diversifier les placements pour lisser le risque"]
[null,"Régulation des stablecoin (centralisés)",9,3,27,"Arrêter d'utiliser des stablecoin centralisés pour passer sur les décentralisés (ex : DAI)"]
[]
[null,null,null,null,0]
[null,null,null,null,0]
[null,null,null,null,0]
[null,null,null,null,0]
[null,null,null,null,0]
[null,null,null,null,0]
[null,null,null,null,0]
[null,null,null,null,0]
[null,null,null,null,0]
[null,null,null,null,0]
[null,null,null,null,0]
[null,null,null,null,0]
[null,null,null,null,0]
[null,null,null,null,0]
[null,null,null,null,0]
[null,null,null,null,0]
[null,null,null,null,0]
[null,null,null,null,0]
[null,null,null,null,0]
[null,null,null,null,0]
[null,null,null,null,0]
[null,null,null,null,0]
[null,null,null,null,0]
[null,null,null,null,0]
[null,null,null,null,0]
[null,null,null,null,0]
[null,null,null,null,0]